bitfinex/quotes_BTCUSD_20220211
["timestamp","ask_amount","ask_price","bid_price","bid_amount"]
[1644538231498,0.00038861,43557.0,43553.0,0.16485433]
[1644538231698,0.00038861,43557.0,43553.0,0.10742833]
[1644538232098,0.00038861,43557.0,43553.0,0.05742833]
[1644538232299,0.00038861,43557.0,43554.0,0.05]
[1644538232498,0.06233362,43559.0,43554.0,0.05]
[1644538232702,0.00026227,43562.0,43556.0,0.65]
[1644538232903,0.00026294,43563.0,43561.0,0.05]
[1644538233104,0.00026294,43565.0,43562.0,0.3]
[1644538233359,0.00090284,43566.0,43563.0,0.08301404]
[1644538233549,0.00026294,43565.0,43563.0,0.08301404]
[1644538233749,0.00090284,43566.0,43563.0,0.08301404]
[1644538234150,0.2493961,43574.0,43563.0,0.08301404]
[1644538234350,0.057413,43580.0,43563.0,0.08301404]
[1644538234549,0.17268708,43578.0,43563.0,0.08301404]
[1644538234749,0.17268708,43578.0,43563.0,0.13301404]
[1644538234954,0.17268708,43578.0,43560.0,0.3]
[1644538234955,0.06754864,43572.0,43560.0,0.3]
[1644538235154,0.06754864,43572.0,43558.0,0.01906941]
[1644538235155,0.05038792,43571.0,43558.0,0.01906941]
[1644538235752,0.00038792,43571.0,43558.0,0.01906941]
[1644538236059,0.26895489,43568.0,43561.0,0.07111131]
[1644538236452,0.00038792,43567.0,43561.0,0.07111131]
[1644538236653,0.00038792,43567.0,43563.0,0.05741557]
[1644538237300,0.057415,43572.0,43563.0,0.05741557]
[1644538237499,0.00052433,43567.0,43566.0,0.32939803]
[1644538237901,0.00052433,43567.0,43566.0,0.37939803]
[1644538238402,0.057415,43572.0,43566.0,0.37939803]
[1644538238605,0.114832,43577.0,43566.0,0.37939803]
[1644538238606,0.057412,43574.0,43566.0,0.37939803]
[1644538238802,0.00038705,43569.0,43567.0,0.28837669]
[1644538239400,0.00038705,43569.0,43568.0,0.08837571]
[1644538239801,0.057406,43579.0,43568.0,0.13837571]
[1644538240002,0.057406,43579.0,43570.0,0.26584241]
[1644538240003,0.00038705,43571.0,43570.0,0.26584241]
[1644538240203,0.00038705,43571.0,43568.0,0.13837571]
[1644538240500,0.00038705,43571.0,43568.0,0.19578366]
[1644538240951,0.30906526,43580.0,43568.0,0.19578366]
[1644538241156,0.00052461,43572.0,43568.0,0.45695093]
[1644538241351,0.00052461,43572.0,43568.0,0.19578366]
[1644538242149,0.00044808,43578.0,43568.0,0.19578366]
[1644538242350,0.00052461,43572.0,43571.0,0.3336719]
[1644538242752,0.00052461,43572.0,43571.0,0.3836719]
[1644538243353,0.00044808,43578.0,43571.0,0.3836719]
[1644538243551,0.00052461,43574.0,43571.0,0.3836719]
[1644538244599,0.00044808,43578.0,43575.0,0.08422329]
[1644538244799,0.00044808,43578.0,43575.0,0.13422329]
[1644538245699,0.00044808,43578.0,43575.0,0.05]
[1644538245900,0.12626282,43582.0,43575.0,0.05]
[1644538246099,0.00089616,43578.0,43573.0,0.05]
[1644538246303,0.00089616,43578.0,43571.0,0.05]
[1644538246505,0.00089616,43578.0,43571.0,0.3]
[1644538246703,0.00089616,43578.0,43571.0,0.2721964]
[1644538246901,0.00089616,43578.0,43572.0,0.3]
[1644538247405,0.081,43586.0,43572.0,0.3]
[1644538247406,0.08000616,43586.0,43573.0,1.38024089]
[1644538247602,0.08000616,43586.0,43578.0,0.057378]
[1644538247800,0.08000616,43586.0,43580.0,0.057378]
[1644538248007,0.08027035,43586.0,43580.0,0.057378]
[1644538248203,0.11576,43604.0,43580.0,0.057378]
[1644538248204,0.08,43601.0,43600.0,0.26572]
[1644538248472,0.4486649,43601.0,43600.0,0.26572]
[1644538248876,0.08,43601.0,43600.0,0.26572]
[1644538251577,0.15486515,43601.0,43600.0,0.26572]
[1644538252804,0.15452338,43601.0,43600.0,0.26572]
[1644538253404,0.20452338,43601.0,43600.0,0.26572]
[1644538253904,0.15452338,43601.0,43600.0,0.26572]
[1644538254108,0.07965823,43601.0,43600.0,0.26572]
[1644538258055,0.07965823,43601.0,43600.0,0.31572]
[1644538258855,0.07965823,43601.0,43600.0,0.60543257]
[1644538259056,0.07965823,43601.0,43600.0,0.61231286]
[1644538260299,0.01660608,43615.0,43601.0,0.707357]
[1644538260503,0.01660608,43615.0,43604.0,0.05735318]
[1644538260698,0.002,43615.0,43605.0,0.19733414]
[1644538260897,0.00126428,43611.0,43605.0,0.36202814]
[1644538261300,0.00126428,43611.0,43609.0,0.07411852]
[1644538261604,0.001,43611.0,43609.0,0.12411852]
[1644538262201,0.001,43611.0,43601.0,0.1187]
[1644538262600,0.00126428,43610.0,43600.0,0.26572]
[1644538262999,0.0005246,43609.0,43600.0,0.26572]
[1644538263367,0.28177598,43606.0,43600.0,0.26572]
[1644538264462,0.33227903,43605.0,43600.0,0.26572]
[1644538264857,0.48227903,43605.0,43600.0,0.26572]
[1644538265057,0.33227903,43605.0,43600.0,0.26572]
[1644538265459,0.43227903,43605.0,43600.0,0.26572]
[1644538265859,0.53227903,43605.0,43600.0,0.26572]
[1644538266058,0.05,43604.0,43600.0,0.26572]
[1644538266257,0.096,43604.0,43600.0,0.26572]
[1644538266460,0.096,43604.0,43585.0,0.3986]
[1644538266461,0.65,43602.0,43591.0,0.3]
[1644538266667,0.65,43602.0,43580.0,0.02091091]
[1644538266668,0.05,43593.0,43580.0,0.02091091]
[1644538266865,0.05,43590.0,43582.0,0.00029163]
[1644538267124,0.346,43589.0,43582.0,0.00029163]
[1644538267317,0.096,43588.0,43582.0,0.00029163]
[1644538267620,0.27623213,43586.0,43582.0,0.00029163]
[1644538267817,0.07846391,43587.0,43582.0,0.00029163]
[1644538267818,0.046,43585.0,43582.0,0.00029163]
[1644538268017,0.2287282,43587.0,43582.0,0.00029163]
[1644538268018,0.046,43584.0,43582.0,0.00029163]
[1644538268218,0.2861332,43587.0,43582.0,0.00029163]
[1644538268219,0.046,43583.0,43582.0,0.00029163]
[1644538269418,0.35033956,43583.0,43582.0,0.00029163]
[1644538269821,0.45033956,43583.0,43582.0,0.00029163]
[1644538270022,0.103404,43583.0,43582.0,0.00029163]
[1644538270319,0.046,43583.0,43582.0,0.00029163]
[1644538271154,0.046,43583.0,43582.0,0.07277386]
[1644538271457,0.046,43583.0,43582.0,0.00029163]
[1644538275107,0.396,43583.0,43582.0,0.00029163]
[1644538275302,0.246,43583.0,43582.0,0.00029163]
[1644538275501,0.25168534,43583.0,43555.0,0.21722199]
[1644538275703,0.25168534,43583.0,43554.0,0.659]
[1644538275704,1.3335,43582.0,43554.0,0.659]
[1644538275900,0.057418,43573.0,43569.0,0.28901137]
[1644538276101,0.05,43571.0,43569.0,0.28901137]
[1644538276300,0.046,43570.0,43569.0,0.28901137]
[1644538276501,0.057416,43573.0,43559.0,0.21736934]
[1644538276502,0.05,43573.0,43559.0,0.21736934]
[1644538276701,0.05,43566.0,43554.0,0.659]
[1644538276900,0.05,43566.0,43554.0,0.42]
[1644538277299,0.045,43566.0,43554.0,0.42]
[1644538277502,0.045,43566.0,43564.0,0.29323404]
[1644538277705,0.045,43566.0,43554.0,0.42]
[1644538277706,0.30797334,43566.0,43554.0,0.42]
[1644538277900,0.046,43565.0,43554.0,0.42]
[1644538278100,0.103426,43565.0,43554.0,0.42]
[1644538278550,0.103426,43565.0,43557.0,0.25130523]
[1644538278751,0.40129803,43565.0,43555.0,0.05]
[1644538278951,0.07403451,43563.0,43555.0,0.13883261]
[1644538279150,0.103431,43562.0,43555.0,0.13883261]
[1644538279551,0.103431,43562.0,43557.0,0.00046137]
[1644538279751,0.103431,43562.0,43559.0,0.31377921]
[1644538279954,0.046,43562.0,43559.0,0.31377921]
[1644538280152,0.046,43562.0,43557.0,0.20046137]
[1644538280359,0.046,43562.0,43557.0,0.00046137]
[1644538280555,0.153436,43562.0,43542.0,0.43949017]
[1644538280756,0.05,43559.0,43542.0,0.43949017]
[1644538280956,0.05,43555.0,43542.0,0.43949017]
[1644538281158,0.36083867,43554.0,43543.0,0.23970665]
[1644538281356,0.46083867,43554.0,43547.0,0.06744933]
[1644538281557,0.146,43554.0,43547.0,0.06744933]
[1644538281958,0.046,43554.0,43547.0,0.06744933]
[1644538282206,0.5,43559.0,43550.0,0.05]
[1644538282403,0.764,43564.0,43550.0,0.05]
[1644538282404,0.05,43564.0,43552.0,0.33705392]
[1644538282603,0.05,43564.0,43552.0,0.6023712]
[1644538282803,0.05,43564.0,43563.0,0.22028761]
[1644538283005,0.05,43564.0,43563.0,0.21153739]
[1644538283201,0.05,43564.0,43563.0,0.26153739]
[1644538283402,0.05,43564.0,43558.0,0.05]
[1644538283603,0.05,43564.0,43552.0,0.38705392]
[1644538284004,0.07533816,43563.0,43552.0,0.41325347]
[1644538284204,0.07533816,43563.0,43552.0,0.46325347]
[1644538284402,0.07533816,43563.0,43556.0,0.00046022]
[1644538284804,0.05,43564.0,43556.0,0.00046022]
[1644538285203,0.05,43564.0,43556.0,0.30187277]
[1644538285403,0.05,43564.0,43555.0,0.27024812]
[1644538285607,0.05,43564.0,43558.0,0.0004602]
[1644538286050,0.05,43564.0,43561.0,0.23997893]
[1644538286553,0.05,43564.0,43562.0,0.52068872]
[1644538286752,0.05,43564.0,43562.0,0.21968872]
[1644538287751,0.05,43564.0,43563.0,0.29962378]
[1644538288155,0.05,43564.0,43563.0,0.34962378]
[1644538288352,0.3645,43576.0,43563.0,0.34962378]
[1644538288551,0.1218,43577.0,43563.0,0.34962378]
[1644538288552,0.05,43575.0,43563.0,0.34962378]
[1644538288755,0.05,43575.0,43563.0,0.39962378]
[1644538288954,0.05,43575.0,43564.0,0.057403]
[1644538289152,0.13680259,43575.0,43570.0,0.51705107]
[1644538289353,0.13180259,43575.0,43570.0,0.51705107]
[1644538289612,0.13180259,43575.0,43570.0,0.32790793]
[1644538290414,0.13180259,43575.0,43574.0,0.19833651]
[1644538290617,0.045,43575.0,43574.0,0.19833651]
[1644538290825,0.045,43575.0,43569.0,0.00045893]
[1644538291019,0.05068534,43575.0,43569.0,0.00045893]
[1644538291214,0.045,43575.0,43569.0,0.00045893]
[1644538291414,0.1136,43574.0,43552.0,0.3]
[1644538291615,0.1636,43574.0,43569.0,0.00045893]
[1644538291814,0.05742281,43571.0,43569.0,0.00045893]
[1644538292015,0.0685586,43570.0,43569.0,0.00045893]
[1644538292214,0.05742281,43571.0,43569.0,0.00045893]
[1644538292415,0.2636,43574.0,43569.0,0.00045893]
[1644538292613,0.2636,43574.0,43560.0,0.3]
[1644538292815,0.32101759,43574.0,43559.0,0.07619955]
[1644538293014,0.37843559,43574.0,43559.0,0.07619955]
[1644538293215,0.28340179,43566.0,43560.0,0.3323675]
[1644538293463,0.05,43564.0,43557.0,0.24343191]
[1644538293660,0.05,43564.0,43539.0,0.1193]
[1644538293861,0.05,43564.0,43542.0,0.42]
[1644538293862,0.05,43561.0,43542.0,0.42]
[1644538294056,0.05743809,43558.0,43542.0,0.42]
[1644538294258,0.107445,43554.0,43542.0,0.42]
[1644538294456,0.26238967,43551.0,43544.0,0.27174349]
[1644538294755,0.0685591,43550.0,43544.0,0.27174349]
[1644538295155,0.0685591,43550.0,43545.0,0.00046586]
[1644538295355,0.057441,43551.0,43545.0,0.00046586]
[1644538296356,0.057441,43551.0,43546.0,0.00046585]
[1644538296561,0.057441,43551.0,43533.0,0.057444]
[1644538296562,0.6,43546.0,43533.0,0.057444]
[1644538296765,0.6,43546.0,43517.0,0.19605527]
[1644538296766,0.05,43544.0,43517.0,0.19605527]
[1644538296959,0.05,43544.0,43522.0,0.42]
[1644538296960,0.05,43541.0,43522.0,0.42]
[1644538297220,0.05,43537.0,43517.0,0.02036902]
[1644538297418,0.05,43532.0,43517.0,0.02036902]
[1644538297621,0.06936963,43528.0,43523.0,0.34382558]
[1644538297818,0.046,43527.0,43522.0,0.22437308]
[1644538298023,0.046,43527.0,43517.0,0.02036902]
[1644538299018,0.046,43527.0,43519.0,0.26142793]
[1644538300326,0.05,43532.0,43526.0,0.35053863]
[1644538300526,0.041,43533.0,43526.0,0.35053863]
[1644538300724,0.041,43533.0,43526.0,0.40053863]
[1644538301367,0.041,43533.0,43531.0,0.24913105]
[1644538301971,0.5,43538.0,43533.0,0.2801874]
[1644538302169,0.046,43541.0,43533.0,0.2801874]
[1644538302469,0.046,43541.0,43533.0,0.28064951]
[1644538302970,0.5,43542.0,43533.0,0.28064951]
[1644538303170,0.5,43542.0,43540.0,0.26033052]
[1644538303371,0.5,43542.0,43541.0,0.3006584]
[1644538303775,0.26321238,43548.0,43541.0,0.3006584]
[1644538303971,0.8952,43551.0,43541.0,0.5038681]
[1644538304172,0.5,43551.0,43541.0,0.5038681]
[1644538304371,0.57960988,43551.0,43541.0,0.5038681]
[1644538304603,0.57960988,43551.0,43541.0,0.3006584]
[1644538304808,0.57960988,43551.0,43527.0,0.057444]
[1644538304809,0.07960988,43551.0,43527.0,0.057444]
[1644538305012,0.05,43550.0,43544.0,0.000462]
[1644538305208,0.057457,43548.0,43544.0,0.000462]
[1644538305908,0.24521466,43546.0,43531.0,0.19069113]
[1644538306108,0.08161872,43538.0,43531.0,0.19069113]
[1644538306416,0.30770221,43537.0,43520.0,0.0001]
[1644538306612,0.046,43536.0,43520.0,0.0001]
[1644538307006,0.33823063,43533.0,43522.0,0.30797459]
[1644538307207,0.046,43536.0,43522.0,0.30797459]
[1644538307409,0.046,43536.0,43531.0,0.22255253]
[1644538308008,0.1,43542.0,43531.0,0.22255253]
[1644538308459,0.1,43542.0,43534.0,0.25573804]
[1644538308662,0.1762424,43542.0,43534.0,0.25573804]
[1644538308861,0.499,43544.0,43534.0,0.25573804]
[1644538309165,0.1,43545.0,43538.0,0.20173607]
[1644538309560,0.28948526,43544.0,43538.0,0.20173607]
[1644538309762,0.28948526,43544.0,43539.0,0.00013919]
[1644538309962,0.1,43545.0,43539.0,0.00013919]
[1644538310362,0.08661149,43545.0,43539.0,0.00013919]
[1644538310762,0.08661149,43545.0,43538.0,0.20173607]
[1644538310964,0.32427662,43544.0,43540.0,0.00013919]
[1644538311166,0.08661149,43545.0,43540.0,0.00013919]
[1644538311868,0.05,43550.0,43534.0,0.25559884]
[1644538312123,0.5473,43551.0,43546.0,0.25927049]
[1644538312124,0.4973,43551.0,43546.0,0.25927049]
[1644538312313,0.4973,43551.0,43540.0,0.00046204]
[1644538312314,0.1,43551.0,43540.0,0.00046204]
[1644538312510,0.15727957,43553.0,43540.0,0.00046204]
[1644538312710,0.05,43555.0,43540.0,0.00046204]
[1644538312909,0.15727957,43556.0,43543.0,0.24243192]
[1644538313110,0.08557134,43551.0,43543.0,0.24243192]
[1644538313511,0.26606913,43550.0,43544.0,0.26590662]
[1644538313711,0.3648,43557.0,43544.0,0.26590662]
[1644538313912,0.3648,43557.0,43545.0,0.18956175]
[1644538314111,0.4648,43557.0,43545.0,0.18956175]
[1644538314316,0.057443,43554.0,43545.0,0.18956175]
[1644538314715,0.32628271,43552.0,43544.0,0.00046333]
[1644538314915,0.42628271,43552.0,43544.0,0.00046333]
[1644538315314,0.06713139,43546.0,43544.0,0.00046333]
[1644538315716,0.057447,43550.0,43544.0,0.00046333]
[1644538315951,0.1,43552.0,43544.0,0.00046333]
[1644538316151,0.05,43556.0,43544.0,0.00046333]
[1644538316152,0.15727957,43556.0,43544.0,0.00046333]
[1644538316351,1.00710338,43557.0,43544.0,0.00046333]
[1644538316552,0.2651785,43553.0,43544.0,0.00046333]
[1644538316753,0.00568534,43555.0,43540.0,0.54962938]
[1644538316956,0.00568534,43555.0,43544.0,0.00046333]
[1644538317554,0.057447,43551.0,43544.0,0.00046333]
[1644538317954,0.057447,43551.0,43540.0,0.31704159]
[1644538318153,0.28242861,43550.0,43540.0,0.31704159]
[1644538319353,0.28242861,43550.0,43543.0,0.00046334]
[1644538319611,0.0824048,43548.0,43543.0,0.00046334]
[1644538320406,0.1398528,43548.0,43530.0,0.32298043]
[1644538320605,0.1398528,43548.0,43543.0,0.00046334]
[1644538321205,0.26769152,43546.0,43543.0,0.00046334]
[1644538321406,0.42515052,43546.0,43543.0,0.00046334]
[1644538321605,0.42515052,43546.0,43532.0,0.2419988]
[1644538321606,0.05746,43545.0,43532.0,0.2419988]
[1644538322405,0.28538979,43540.0,43533.0,0.29948316]
[1644538322806,0.34284679,43540.0,43529.0,0.30258179]
[1644538323005,0.057457,43540.0,43534.0,0.00046228]
[1644538323206,0.157457,43540.0,43534.0,0.00046228]
[1644538323459,0.1,43540.0,43534.0,0.00046228]
[1644538323858,0.08540459,43538.0,43534.0,0.00046228]
[1644538324059,0.08540459,43538.0,43529.0,0.19349287]
[1644538324260,0.41135514,43538.0,43535.0,0.00013868]
[1644538324457,0.08540459,43538.0,43535.0,0.00013868]
[1644538324658,0.18540459,43538.0,43535.0,0.00013868]
[1644538325061,0.1,43538.0,43535.0,7.093e-05]
[1644538325363,0.43705694,43538.0,43531.0,0.50719937]
[1644538325562,0.43705694,43538.0,43526.0,0.05]
[1644538325763,0.43705694,43538.0,43524.0,0.05]
[1644538325961,0.43705694,43538.0,43525.0,0.29649084]
[1644538326165,0.06333374,43535.0,43525.0,0.37271117]
[1644538326363,0.06333374,43535.0,43525.0,0.29651162]
[1644538326563,0.06333374,43535.0,43529.0,0.25986442]
[1644538326962,0.06333374,43535.0,43527.0,0.25405222]
[1644538327604,0.06333374,43535.0,43527.0,0.20405222]
[1644538327904,0.06333374,43535.0,43529.0,0.00046217]
[1644538328303,0.06333374,43535.0,43532.0,0.35380214]
[1644538328503,0.29560884,43540.0,43532.0,0.35380214]
[1644538328704,0.39560884,43540.0,43529.0,0.00046217]
[1644538328905,0.39560884,43540.0,43528.0,0.25164586]
[1644538328906,0.057457,43539.0,43528.0,0.25164586]
[1644538329405,0.057457,43539.0,43527.0,0.20405222]
[1644538329604,0.0842873,43535.0,43529.0,0.35280526]
[1644538330403,0.0842873,43535.0,43524.0,0.05]
[1644538330607,0.0842873,43535.0,43520.0,0.0001]
[1644538330608,0.1417493,43535.0,43520.0,0.0001]
[1644538331060,0.05,43534.0,43520.0,0.0001]
[1644538331258,0.114958,43531.0,43520.0,0.0001]
[1644538331460,0.07523859,43523.0,43520.0,0.0001]
[1644538331661,0.05748,43528.0,43520.0,0.0001]
[1644538331860,0.06684632,43524.0,43520.0,0.0001]
[1644538332760,0.05748,43522.0,43520.0,0.00056111]
[1644538332960,0.146,43530.0,43520.0,0.00056111]
[1644538333160,0.1,43526.0,43520.0,0.00056111]
[1644538333460,0.146,43530.0,43520.0,0.00056111]
[1644538333659,0.146,43530.0,43520.0,0.0001]
[1644538333860,0.146,43530.0,43521.0,0.00046109]
[1644538334061,0.057475,43524.0,43521.0,0.00046109]
[1644538334903,0.057475,43524.0,43520.0,0.0001]
[1644538335109,0.057475,43524.0,43520.0,0.0005611]
[1644538336105,0.057475,43524.0,43520.0,0.0001]
[1644538336309,0.057475,43524.0,43520.0,0.00056111]
[1644538336509,0.30038811,43523.0,43520.0,0.00056111]
[1644538336708,0.32714953,43522.0,43520.0,0.00056111]
[1644538336904,0.103487,43521.0,43520.0,0.00056111]
[1644538337105,0.4279901,43521.0,43520.0,0.00056111]
[1644538337307,0.78997591,43521.0,43520.0,0.0001]
[1644538337507,0.5279901,43521.0,43520.0,0.0001]
[1644538343205,0.07911171,43515.0,43510.0,0.16530234]
[1644538343407,0.07911171,43515.0,43512.0,0.00012613]
[1644538343408,0.057488,43514.0,43512.0,0.00012613]
[1644538343605,0.00012613,43512.0,43510.0,0.16530234]
[1644538343808,0.00012613,43512.0,43507.0,0.00012613]
[1644538344013,0.00012613,43512.0,43511.0,0.05]
[1644538344214,0.4225,43528.0,43512.0,0.65]
[1644538344510,0.1225,43528.0,43517.0,0.05]
[1644538344708,0.3729,43529.0,43517.0,0.05]
[1644538344908,0.082133,43528.0,43523.0,0.26959386]
[1644538346352,0.00196131,43534.0,43522.0,0.057464]
[1644538346554,0.10196131,43534.0,43519.0,0.64105214]
[1644538346752,0.05196131,43534.0,43519.0,0.64105214]
[1644538346951,0.05,43534.0,43519.0,0.64105214]
[1644538347153,0.114939,43533.0,43519.0,0.64105214]
[1644538347351,0.05747,43530.0,43519.0,0.64105214]
[1644538347551,0.36525738,43528.0,43519.0,0.64105214]
[1644538347752,0.36525738,43528.0,43519.0,0.59105214]
[1644538347955,0.36525738,43528.0,43519.0,0.59117827]
[1644538348151,0.36525738,43528.0,43519.0,0.47624827]
[1644538348351,0.46525738,43528.0,43519.0,0.47612214]
[1644538348551,0.46525738,43528.0,43522.0,0.29412604]
[1644538348752,0.52272738,43528.0,43522.0,0.29412604]
[1644538349806,0.44316558,43528.0,43522.0,0.29412604]
[1644538351008,0.44316558,43528.0,43520.0,0.00012613]
[1644538351009,0.52759374,43528.0,43520.0,0.00012613]
[1644538351208,0.52759374,43528.0,43519.0,0.54510781]
[1644538351808,0.52759374,43528.0,43520.0,0.057471]
[1644538352210,0.52759374,43528.0,43521.0,0.35362874]
[1644538352409,0.52759374,43528.0,43521.0,0.35375487]
[1644538354464,0.52759374,43528.0,43521.0,0.41122487]
[1644538354664,0.52759374,43528.0,43521.0,0.41109874]
[1644538356265,0.24189816,43528.0,43521.0,0.41109874]
[1644538356765,0.14189816,43528.0,43521.0,0.41109874]
[1644538357211,0.05747,43528.0,43521.0,0.41109874]
[1644538357411,0.05747,43528.0,43526.0,0.21953171]
[1644538358512,0.05747,43528.0,43526.0,0.47633867]
[1644538358713,0.05747,43528.0,43527.0,0.08245247]
[1644538358916,0.17240042,43533.0,43527.0,0.08245247]
[1644538358917,0.114908,43543.0,43527.0,0.17845247]
[1644538359116,0.3,43545.0,43528.0,0.05]
[1644538359320,0.00198327,43536.0,43529.0,0.046]
[1644538359916,0.00198327,43536.0,43535.0,0.21384369]
[1644538360115,0.00198327,43536.0,43535.0,0.648059]
[1644538360317,0.020369,43541.0,43535.0,0.590616]
[1644538360515,0.00049579,43538.0,43535.0,0.636616]
[1644538360959,0.00049579,43538.0,43536.0,0.05744]
[1644538361361,0.020369,43541.0,43537.0,0.27419988]
[1644538361662,0.00198287,43546.0,43543.0,0.22127228]
[1644538361861,0.00198287,43546.0,43541.0,0.05744]
[1644538362059,0.00198287,43546.0,43537.0,0.37419988]
[1644538362661,0.25746214,43548.0,43544.0,0.05744]
[1644538362861,0.00049578,43544.0,43543.0,0.08173502]
[1644538363060,0.00049578,43544.0,43543.0,0.2733426]
[1644538363665,0.00049578,43544.0,43543.0,0.3233426]
[1644538363962,0.1,43553.0,43543.0,0.2733426]
[1644538364162,0.00049579,43546.0,43543.0,0.2733426]
[1644538365004,0.24934553,43551.0,43543.0,0.27325825]
[1644538365205,0.24934553,43551.0,43543.0,0.62568077]
[1644538365507,0.00049579,43547.0,43544.0,0.05744]
[1644538366207,0.057438,43551.0,43544.0,0.05744]
[1644538366408,0.00049579,43548.0,43544.0,0.05744]
[1644538366610,0.00049579,43548.0,43544.0,0.10744]
[1644538366808,0.00049579,43548.0,43544.0,0.25344]
[1644538367207,0.00049579,43548.0,43544.0,0.20344]
[1644538367407,0.34521369,43557.0,43544.0,0.25344]
[1644538367707,0.34521369,43557.0,43555.0,0.31054873]
[1644538367909,0.001,43558.0,43555.0,0.31054873]
[1644538368769,0.001,43558.0,43555.0,0.36054873]
[1644538368969,0.001,43558.0,43556.0,0.05741803]
[1644538369171,0.001,43558.0,43556.0,0.28521193]
[1644538369370,0.001,43558.0,43556.0,0.33521193]
[1644538369671,0.001,43558.0,43556.0,0.41829557]
[1644538369870,0.002,43566.0,43557.0,0.046]
[1644538370068,0.00398271,43566.0,43564.0,0.11480974]
[1644538370267,0.00398271,43566.0,43564.0,0.37729842]
[1644538370467,0.00398271,43566.0,43564.0,0.42729842]
[1644538370666,0.00398271,43566.0,43564.0,0.47729842]
[1644538371070,0.002,43566.0,43564.0,0.47729842]
[1644538371667,0.002,43566.0,43564.0,0.42729842]
[1644538371867,0.002,43566.0,43565.0,0.08783152]
[1644538372120,0.002,43566.0,43565.0,0.38444279]
[1644538372614,0.002,43566.0,43565.0,0.29661127]
[1644538374118,0.002,43566.0,43565.0,0.34261127]
[1644538380120,0.058404,43580.0,43566.0,0.65]
[1644538380320,0.0020854,43574.0,43569.0,0.05739637]
[1644538380513,0.0020854,43574.0,43570.0,0.046]
[1644538380913,0.001,43580.0,43570.0,0.046]
[1644538381114,0.001,43580.0,43571.0,0.26447495]
[1644538381420,0.001,43580.0,43572.0,0.44328266]
[1644538381616,0.001,43580.0,43575.0,0.31242958]
[1644538381815,0.001,43580.0,43575.0,0.36242958]
[1644538382814,0.001,43580.0,43575.0,0.05]
[1644538383455,0.001,43580.0,43573.0,0.05]
[1644538383656,0.001,43580.0,43573.0,0.046]
[1644538384655,0.00152175,43577.0,43573.0,0.046]
[1644538385055,0.00113538,43577.0,43573.0,0.046]
[1644538385658,0.00061363,43577.0,43573.0,0.046]
[1644538385958,0.00113538,43577.0,43573.0,0.046]
[1644538386661,0.00113538,43577.0,43573.0,0.38330736]
[1644538386858,0.00061363,43577.0,43573.0,0.44070233]
[1644538387111,0.00113538,43577.0,43573.0,0.046]
[1644538387907,0.00061363,43577.0,43573.0,0.046]
[1644538388108,0.00061363,43577.0,43574.0,0.25108549]
[1644538388407,0.00061363,43577.0,43574.0,0.35848049]
[1644538388809,0.00061363,43577.0,43574.0,0.30108549]
[1644538389010,0.00061363,43577.0,43574.0,0.05]
[1644538389215,0.00061363,43577.0,43574.0,0.39405442]
[1644538389610,0.00061363,43577.0,43574.0,0.34405442]
[1644538389809,0.00061363,43577.0,43574.0,0.39405442]
[1644538393666,0.00061363,43577.0,43573.0,0.057399]
[1644538393866,0.00061363,43577.0,43566.0,0.114803]
[1644538394270,0.00111061,43577.0,43566.0,0.114803]
[1644538394710,0.00111061,43577.0,43566.0,0.34779729]
[1644538394911,0.00111061,43577.0,43571.0,0.29620897]
[1644538395112,0.05801863,43577.0,43571.0,0.29620897]
[1644538395310,0.05801863,43577.0,43569.0,0.193188]
[1644538395311,0.07047558,43573.0,43569.0,0.193188]
[1644538396012,0.00049698,43576.0,43569.0,0.193188]
[1644538396312,0.00061363,43577.0,43570.0,0.33353156]
[1644538396712,0.0004954,43575.0,43570.0,0.33353156]
[1644538397114,0.0579024,43575.0,43570.0,0.33353156]
[1644538397313,0.0004954,43575.0,43570.0,0.33353156]
[1644538397514,0.00061363,43577.0,43570.0,0.38353156]
[1644538397913,0.0004954,43575.0,43570.0,0.38353156]
[1644538398762,0.00061363,43577.0,43571.0,0.0827048]
[1644538398964,0.00061363,43577.0,43569.0,0.193188]
[1644538399163,0.0004954,43575.0,43569.0,0.193188]
[1644538399362,0.0004954,43575.0,43569.0,0.243188]
[1644538399962,0.00061363,43577.0,43569.0,0.56013572]
[1644538400165,0.05790476,43574.0,43569.0,0.56013572]
[1644538400368,0.05790476,43574.0,43570.0,0.05]
[1644538400369,0.00049576,43574.0,43570.0,0.05]
[1644538400568,0.00061363,43577.0,43572.0,0.65]
[1644538400866,0.00061363,43577.0,43573.0,0.046]
[1644538401069,0.001,43583.0,43573.0,0.046]
[1644538401070,0.001,43586.0,43576.0,0.05]
[1644538401266,0.001,43586.0,43585.0,0.21506844]
[1644538401666,0.001,43591.0,43586.0,0.65]
[1644538401867,0.002,43596.0,43587.0,0.4]
[1644538402127,0.002,43595.0,43587.0,0.4]
[1644538402316,0.002,43595.0,43587.0,0.45]
[1644538402516,0.002,43595.0,43588.0,0.057371]
[1644538402917,0.002,43595.0,43587.0,0.45]
[1644538403515,0.002,43595.0,43587.0,0.507373]
[1644538403716,0.002,43595.0,43589.0,0.11474775]
[1644538404118,0.002,43595.0,43592.0,0.29024419]
[1644538404318,0.002,43595.0,43592.0,0.47779646]
[1644538405118,0.00252116,43595.0,43592.0,0.47779646]
[1644538405517,0.00078,43594.0,43592.0,0.7429852]
[1644538405717,0.00078,43594.0,43592.0,0.90772054]
[1644538405964,0.00078,43594.0,43592.0,0.05]
[1644538406365,0.00078,43594.0,43585.0,0.475493]
[1644538406564,0.00078,43594.0,43587.0,0.057378]
[1644538406765,0.00078,43594.0,43589.0,0.05737527]
[1644538406964,0.00078,43594.0,43591.0,0.26537771]
[1644538407164,0.00078,43594.0,43592.0,0.22846262]
[1644538408570,0.00078,43594.0,43583.0,0.114757]
[1644538408770,0.00078,43594.0,43579.0,0.1185]
[1644538408970,0.00078,43594.0,43580.0,0.057387]
[1644538409369,0.00078,43594.0,43584.0,0.18895358]
[1644538409611,0.00078,43594.0,43587.0,0.23183843]
[1644538409908,0.00038078,43591.0,43587.0,0.28183843]
[1644538410105,0.00038078,43591.0,43584.0,0.38898645]
[1644538410305,0.00038078,43591.0,43583.0,0.05738379]